[Event "Titled Tuesday Blitz February 14 Early 2023"]
[White "Ibarra Jerez, Jose Carlos"]
[Black "Vovk, Orest"]
[WhiteFideId "2226332"]
[BlackFideId "14113490"]
[WhiteElo "2563"]
[BlackElo "2315"]
[Result "0-1"]
[Round "02"]
[TimeControl "180+2"]
[Date "2023.02.15"]
[WhiteClock "0:00:19"]
[BlackClock "0:00:40"]

1. e4 {[%clk 0:03:00]}  g5 {[%clk 0:02:57]} 2. d4 {[%clk 0:02:57]}  g4 {[%clk 0:02:57]} 3. f4 {[%clk 0:02:45]}  d5 {[%clk 0:02:55]} 4. e5 {[%clk 0:02:43]}  c5 {[%clk 0:02:54]} 5. c3 {[%clk 0:02:38]}  Nc6 {[%clk 0:02:51]} 6. Na3 {[%clk 0:02:27]}  Bf5 {[%clk 0:02:49]} 7. Ne2 {[%clk 0:02:23]}  Qb6 {[%clk 0:02:47]} 8. Ng3 {[%clk 0:02:23]}  Nh6 {[%clk 0:02:38]} 9. dxc5 {[%clk 0:02:12]}  Qxc5 {[%clk 0:02:36]} 10. Nb5 {[%clk 0:02:12]}  O-O-O {[%clk 0:02:32]} 11. b4 {[%clk 0:02:01]}  Qb6 {[%clk 0:02:30]} 12. a4 {[%clk 0:02:00]}  Rd7 {[%clk 0:02:17]} 13. a5 {[%clk 0:01:57]}  Qd8 {[%clk 0:02:15]} 14. a6 {[%clk 0:01:58]}  d4 {[%clk 0:02:08]} 15. axb7+ {[%clk 0:01:52]}  Kb8 {[%clk 0:02:05]} 16. Nxf5 {[%clk 0:01:39]}  Nxf5 {[%clk 0:01:57]} 17. Qxg4 {[%clk 0:01:37]}  e6 {[%clk 0:01:53]} 18. Qf3 {[%clk 0:01:37]}  Qb6 {[%clk 0:01:47]} 19. Nd6 {[%clk 0:01:14]}  Bxd6 {[%clk 0:01:30]} 20. exd6 {[%clk 0:01:09]}  Rxd6 {[%clk 0:01:28]} 21. Ra6 {[%clk 0:00:45]}  Qxb7 {[%clk 0:01:26]} 22. b5 {[%clk 0:00:41]}  Nce7 {[%clk 0:01:21]} 23. Qxb7+ {[%clk 0:00:36]}  Kxb7 {[%clk 0:01:22]} 24. Ba3 {[%clk 0:00:37]}  Rxa6 {[%clk 0:01:13]} 25. bxa6+ {[%clk 0:00:37]}  Kb6 {[%clk 0:01:11]} 26. g4 {[%clk 0:00:37]}  dxc3 {[%clk 0:01:08]} 27. gxf5 {[%clk 0:00:36]}  Nxf5 {[%clk 0:01:09]} 28. Bd3 {[%clk 0:00:36]}  Rd8 {[%clk 0:00:57]} 29. Bxf5 {[%clk 0:00:35]}  exf5 {[%clk 0:00:58]} 30. O-O {[%clk 0:00:27]}  c2 {[%clk 0:00:52]} 31. Kf2 {[%clk 0:00:19]}  Rd1 {[%clk 0:00:51]} 32. Ke2 {[%clk 0:00:18]}  Rxf1 {[%clk 0:00:51]} 33. Kxf1 {[%clk 0:00:18]}  Kxa6 {[%clk 0:00:52]} 34. Ke2 {[%clk 0:00:19]}  Kb5 {[%clk 0:00:52]} 35. Kd3 {[%clk 0:00:19]}  Ka4 {[%clk 0:00:51]} 36. Bc1 {[%clk 0:00:18]}  Kb3 {[%clk 0:00:51]} 37. h4 {[%clk 0:00:18]}  a5 {[%clk 0:00:42]} 38. h5 {[%clk 0:00:18]}  a4 {[%clk 0:00:43]} 39. h6 {[%clk 0:00:18]}  a3 {[%clk 0:00:40]} 40. Bxa3 {[%clk 0:00:17]}  Kxa3 {[%clk 0:00:40]} 41. Kxc2 {[%clk 0:00:17]}  Kb4 {[%clk 0:00:40]} 42. Kd3 {[%clk 0:00:18]}  Kc5 {[%clk 0:00:40]} 43. Kc3 {[%clk 0:00:17]}  Kd5 {[%clk 0:00:40]} 44. Kd3 {[%clk 0:00:16]}  f6 {[%clk 0:00:41]} 45. Ke3 {[%clk 0:00:15]}  Kc4 {[%clk 0:00:41]} 46. Ke2 {[%clk 0:00:14]}  Kd4 {[%clk 0:00:41]} 47. Kf3 {[%clk 0:00:14]}  Kd3 {[%clk 0:00:41]} 48. Kg3 {[%clk 0:00:15]}  Ke3 {[%clk 0:00:41]} 49. Kh4 {[%clk 0:00:16]}  Kxf4 {[%clk 0:00:42]} 50. Kh5 {[%clk 0:00:16]}  Ke4 {[%clk 0:00:41]} 51. Kh4 {[%clk 0:00:16]}  f4 {[%clk 0:00:41]} 52. Kg4 {[%clk 0:00:17]}  f3 {[%clk 0:00:40]} 53. Kg3 {[%clk 0:00:17]}  Ke3 {[%clk 0:00:41]} 54. Kg4 {[%clk 0:00:18]}  f2 {[%clk 0:00:40]} 55. Kf5 {[%clk 0:00:19]}  f1=Q+ {[%clk 0:00:40]} 56. Ke6 {[%clk 0:00:19]}  Qg1 {[%clk 0:00:40]} 0-1


[Site "https://www.chess.com"]

[Event "Titled Tuesday Blitz February 14 Early 2023"]
[White "Bacrot, Etienne"]
[Black "Maltsevskaya, Aleksandra"]
[WhiteFideId "605506"]
[BlackFideId "24174041"]
[WhiteElo "2667"]
[BlackElo "2390"]
[Result "1-0"]
[Round "02"]
[TimeControl "180+2"]
[Date "2023.02.15"]
[WhiteClock "0:00:51"]
[BlackClock "0:00:05"]

1. e4 {[%clk 0:03:00]}  c5 {[%clk 0:02:43]} 2. Nf3 {[%clk 0:03:00]}  e6 {[%clk 0:02:43]} 3. b3 {[%clk 0:03:00]}  Nc6 {[%clk 0:02:43]} 4. Bb2 {[%clk 0:02:59]}  b6 {[%clk 0:02:43]} 5. d4 {[%clk 0:02:50]}  cxd4 {[%clk 0:02:42]} 6. Nxd4 {[%clk 0:02:50]}  Bb7 {[%clk 0:02:43]} 7. Bd3 {[%clk 0:02:50]}  Nf6 {[%clk 0:02:42]} 8. Nxc6 {[%clk 0:02:41]}  Bxc6 {[%clk 0:02:43]} 9. Qe2 {[%clk 0:02:36]}  Qc7 {[%clk 0:02:40]} 10. O-O {[%clk 0:02:31]}  d6 {[%clk 0:02:16]} 11. c4 {[%clk 0:02:16]}  Be7 {[%clk 0:02:11]} 12. Nc3 {[%clk 0:02:16]}  O-O {[%clk 0:02:10]} 13. Rac1 {[%clk 0:02:16]}  Qb7 {[%clk 0:02:10]} 14. f4 {[%clk 0:02:15]}  Rad8 {[%clk 0:02:06]} 15. Rf3 {[%clk 0:02:09]}  d5 {[%clk 0:02:06]} 16. cxd5 {[%clk 0:02:04]}  exd5 {[%clk 0:02:07]} 17. exd5 {[%clk 0:02:00]}  Nxd5 {[%clk 0:02:05]} 18. Nxd5 {[%clk 0:02:00]}  Bxd5 {[%clk 0:02:06]} 19. Bxh7+ {[%clk 0:01:34]}  Kxh7 {[%clk 0:02:02]} 20. Rh3+ {[%clk 0:01:34]}  Kg8 {[%clk 0:02:02]} 21. Bxg7 {[%clk 0:01:30]}  Bxg2 {[%clk 0:00:19]} 22. Rg3 {[%clk 0:01:18]}  Be4 {[%clk 0:00:05]} 23. Qh5 {[%clk 0:00:51]} 1-0


[Site "https://www.chess.com"]

[Event "Titled Tuesday Blitz February 14 Early 2023"]
[White "Golubev, Mikhail"]
[Black "Molina, Roberto Junio Brito"]
[WhiteFideId "14100983"]
[BlackFideId "2109450"]
[WhiteElo "2461"]
[BlackElo "2403"]
[Result "0-1"]
[Round "02"]
[TimeControl "180+2"]
[Date "2023.02.15"]
[WhiteClock "0:00:01"]
[BlackClock "0:01:09"]

1. e4 {[%clk 0:03:00]}  c6 {[%clk 0:02:58]} 2. d4 {[%clk 0:02:59]}  d5 {[%clk 0:02:58]} 3. e5 {[%clk 0:02:59]}  Bf5 {[%clk 0:02:58]} 4. h4 {[%clk 0:02:59]}  Qb6 {[%clk 0:02:58]} 5. h5 {[%clk 0:02:54]}  h6 {[%clk 0:02:57]} 6. c3 {[%clk 0:02:43]}  c5 {[%clk 0:02:54]} 7. dxc5 {[%clk 0:02:29]}  Qxc5 {[%clk 0:02:54]} 8. Be3 {[%clk 0:02:28]}  Qa5 {[%clk 0:02:53]} 9. Ne2 {[%clk 0:02:13]}  Nc6 {[%clk 0:02:51]} 10. Ng3 {[%clk 0:02:05]}  Bxb1 {[%clk 0:02:46]} 11. Rxb1 {[%clk 0:01:58]}  e6 {[%clk 0:02:46]} 12. f4 {[%clk 0:01:48]}  O-O-O {[%clk 0:02:41]} 13. Ne2 {[%clk 0:01:14]}  Kb8 {[%clk 0:02:32]} 14. Nd4 {[%clk 0:01:09]}  Nxd4 {[%clk 0:02:31]} 15. Bxd4 {[%clk 0:01:05]}  Ne7 {[%clk 0:02:31]} 16. b4 {[%clk 0:00:53]}  Qc7 {[%clk 0:02:30]} 17. Bd3 {[%clk 0:00:42]}  Nc6 {[%clk 0:02:20]} 18. O-O {[%clk 0:00:40]}  Be7 {[%clk 0:02:09]} 19. b5 {[%clk 0:00:40]}  Nxd4 {[%clk 0:02:06]} 20. cxd4 {[%clk 0:00:41]}  Qa5 {[%clk 0:02:04]} 21. b6 {[%clk 0:00:36]}  a6 {[%clk 0:01:58]} 22. Qg4 {[%clk 0:00:34]}  Qc3 {[%clk 0:01:54]} 23. Rfd1 {[%clk 0:00:25]}  Qxd4+ {[%clk 0:01:55]} 24. Kh1 {[%clk 0:00:25]}  Qf2 {[%clk 0:01:49]} 25. Rf1 {[%clk 0:00:19]}  Qh4+ {[%clk 0:01:46]} 26. Qxh4 {[%clk 0:00:19]}  Bxh4 {[%clk 0:01:47]} 27. f5 {[%clk 0:00:17]}  Bg3 {[%clk 0:01:47]} 28. fxe6 {[%clk 0:00:15]}  fxe6 {[%clk 0:01:48]} 29. Rf7 {[%clk 0:00:14]}  Bxe5 {[%clk 0:01:43]} 30. Re1 {[%clk 0:00:14]}  Bf6 {[%clk 0:01:41]} 31. Rxe6 {[%clk 0:00:13]}  Rhe8 {[%clk 0:01:42]} 32. Rxe8 {[%clk 0:00:12]}  Rxe8 {[%clk 0:01:43]} 33. g3 {[%clk 0:00:10]}  Bd4 {[%clk 0:01:43]} 34. Bf5 {[%clk 0:00:09]}  Bxb6 {[%clk 0:01:42]} 35. Rxg7 {[%clk 0:00:09]}  Be3 {[%clk 0:01:39]} 36. Rd7 {[%clk 0:00:08]}  Re5 {[%clk 0:01:37]} 37. g4 {[%clk 0:00:08]}  Ka7 {[%clk 0:01:35]} 38. Kg2 {[%clk 0:00:07]}  Bg5 {[%clk 0:01:33]} 39. Kf3 {[%clk 0:00:06]}  Kb6 {[%clk 0:01:33]} 40. Bg6 {[%clk 0:00:05]}  Kc6 {[%clk 0:01:33]} 41. Rf7 {[%clk 0:00:05]}  b5 {[%clk 0:01:28]} 42. Rf5 {[%clk 0:00:04]}  Re3+ {[%clk 0:01:20]} 43. Kf2 {[%clk 0:00:04]}  Ra3 {[%clk 0:01:21]} 44. Re5 {[%clk 0:00:02]}  Rxa2+ {[%clk 0:01:19]} 45. Kg1 {[%clk 0:00:02]}  Kd6 {[%clk 0:01:19]} 46. Rxg5 {[%clk 0:00:01]}  hxg5 {[%clk 0:01:17]} 47. h6 {[%clk 0:00:02]}  Ra1+ {[%clk 0:01:08]} 48. Kg2 {[%clk 0:00:01]}  Rc1 {[%clk 0:01:09]} 0-1


[Site "https://www.chess.com"]

[Event "Titled Tuesday Blitz February 14 Early 2023"]
[White "Sharapov, Evgeny"]
[Black "Madaminov, Mukhiddin"]
[WhiteFideId "14103133"]
[BlackFideId "14210703"]
[WhiteElo "2375"]
[BlackElo "2422"]
[Result "0-1"]
[Round "02"]
[TimeControl "180+2"]
[Date "2023.02.15"]
[WhiteClock "0:00:10"]
[BlackClock "0:00:19"]

1. e4 {[%clk 0:02:59]}  e5 {[%clk 0:03:00]} 2. Nf3 {[%clk 0:02:58]}  Nc6 {[%clk 0:03:00]} 3. Bb5 {[%clk 0:02:58]}  a6 {[%clk 0:03:00]} 4. Ba4 {[%clk 0:02:57]}  Nf6 {[%clk 0:03:00]} 5. d3 {[%clk 0:02:57]}  d6 {[%clk 0:03:00]} 6. O-O {[%clk 0:02:57]}  g6 {[%clk 0:03:00]} 7. c3 {[%clk 0:02:57]}  Bg7 {[%clk 0:02:59]} 8. Re1 {[%clk 0:02:57]}  O-O {[%clk 0:02:57]} 9. h3 {[%clk 0:02:57]}  h6 {[%clk 0:02:57]} 10. d4 {[%clk 0:02:57]}  b5 {[%clk 0:02:50]} 11. Bb3 {[%clk 0:02:57]}  Re8 {[%clk 0:02:48]} 12. Nbd2 {[%clk 0:02:56]}  Bb7 {[%clk 0:02:42]} 13. a4 {[%clk 0:02:50]}  b4 {[%clk 0:02:15]} 14. d5 {[%clk 0:02:43]}  bxc3 {[%clk 0:02:15]} 15. bxc3 {[%clk 0:02:39]}  Na5 {[%clk 0:02:10]} 16. Bc2 {[%clk 0:02:37]}  c6 {[%clk 0:02:07]} 17. c4 {[%clk 0:02:37]}  Rc8 {[%clk 0:02:05]} 18. Bd3 {[%clk 0:02:32]}  cxd5 {[%clk 0:01:38]} 19. cxd5 {[%clk 0:02:32]}  Nxd5 {[%clk 0:01:38]} 20. exd5 {[%clk 0:02:30]}  e4 {[%clk 0:01:39]} 21. Ra3 {[%clk 0:02:13]}  exd3 {[%clk 0:01:24]} 22. Rxe8+ {[%clk 0:02:12]}  Qxe8 {[%clk 0:01:24]} 23. Rxd3 {[%clk 0:02:12]}  Nc4 {[%clk 0:01:23]} 24. Nxc4 {[%clk 0:02:04]}  Rxc4 {[%clk 0:01:24]} 25. Ba3 {[%clk 0:02:02]}  Rxa4 {[%clk 0:01:17]} 26. Qb3 {[%clk 0:01:54]}  Qd7 {[%clk 0:01:11]} 27. Nd2 {[%clk 0:01:35]}  Rd4 {[%clk 0:00:17]} 28. Rxd4 {[%clk 0:01:23]}  Bxd4 {[%clk 0:00:18]} 29. Ne4 {[%clk 0:01:13]}  Qf5 {[%clk 0:00:18]} 30. Qxb7 {[%clk 0:00:35]}  Qxe4 {[%clk 0:00:18]} 31. Bxd6 {[%clk 0:00:29]}  Qe1+ {[%clk 0:00:18]} 32. Kh2 {[%clk 0:00:29]}  Qxf2 {[%clk 0:00:19]} 33. Qc8+ {[%clk 0:00:20]}  Kh7 {[%clk 0:00:18]} 34. Qxa6 {[%clk 0:00:16]}  Qg1+ {[%clk 0:00:17]} 35. Kg3 {[%clk 0:00:17]}  Qe1+ {[%clk 0:00:18]} 36. Kf3 {[%clk 0:00:13]}  Qe3+ {[%clk 0:00:18]} 37. Kg4 {[%clk 0:00:10]}  f5+ {[%clk 0:00:18]} 38. Kh4 {[%clk 0:00:10]}  Bf6# {[%clk 0:00:19]} 0-1


[Site "https://www.chess.com"]

[Event "Titled Tuesday Blitz February 14 Early 2023"]
[White "Remizov, Yaroslav"]
[Black "Shimelkov, Vasiliy"]
[WhiteFideId "34134015"]
[BlackFideId "13701630"]
[WhiteElo "2421"]
[BlackElo "2159"]
[Result "1/2-1/2"]
[Round "02"]
[TimeControl "180+2"]
[Date "2023.02.15"]
[WhiteClock "0:00:22"]
[BlackClock "0:00:03"]

1. e4 {[%clk 0:02:59]}  c5 {[%clk 0:03:00]} 2. Nf3 {[%clk 0:02:59]}  Nc6 {[%clk 0:03:00]} 3. Bb5 {[%clk 0:02:58]}  e6 {[%clk 0:03:00]} 4. b3 {[%clk 0:02:58]}  Nge7 {[%clk 0:02:57]} 5. Bb2 {[%clk 0:02:58]}  a6 {[%clk 0:02:46]} 6. Bf1 {[%clk 0:02:31]}  d5 {[%clk 0:02:42]} 7. exd5 {[%clk 0:02:30]}  exd5 {[%clk 0:02:41]} 8. g3 {[%clk 0:02:26]}  Be6 {[%clk 0:02:37]} 9. Bg2 {[%clk 0:02:26]}  Nf5 {[%clk 0:02:35]} 10. O-O {[%clk 0:02:25]}  Be7 {[%clk 0:02:33]} 11. g4 {[%clk 0:02:18]}  Nfd4 {[%clk 0:02:30]} 12. Nxd4 {[%clk 0:02:18]}  cxd4 {[%clk 0:02:30]} 13. f4 {[%clk 0:02:12]}  f5 {[%clk 0:02:27]} 14. g5 {[%clk 0:02:11]}  O-O {[%clk 0:02:24]} 15. d3 {[%clk 0:02:12]}  Qe8 {[%clk 0:02:19]} 16. Nd2 {[%clk 0:02:11]}  Rd8 {[%clk 0:02:05]} 17. Nf3 {[%clk 0:02:10]}  Bc5 {[%clk 0:02:02]} 18. Qd2 {[%clk 0:02:08]}  Qf7 {[%clk 0:01:58]} 19. a3 {[%clk 0:02:07]}  b5 {[%clk 0:01:56]} 20. b4 {[%clk 0:01:57]}  Bb6 {[%clk 0:01:54]} 21. Rae1 {[%clk 0:01:57]}  Rfe8 {[%clk 0:01:53]} 22. h4 {[%clk 0:01:56]}  g6 {[%clk 0:01:50]} 23. Kh2 {[%clk 0:01:56]}  Bd7 {[%clk 0:01:44]} 24. Kg3 {[%clk 0:01:53]}  Re3 {[%clk 0:01:42]} 25. Qf2 {[%clk 0:01:50]}  Rde8 {[%clk 0:01:39]} 26. Bc1 {[%clk 0:01:50]}  Qe6 {[%clk 0:01:27]} 27. Kh2 {[%clk 0:01:40]}  Qd6 {[%clk 0:01:24]} 28. Qg3 {[%clk 0:01:37]}  Rxe1 {[%clk 0:01:14]} 29. Rxe1 {[%clk 0:01:36]}  Rxe1 {[%clk 0:01:11]} 30. Qxe1 {[%clk 0:01:37]}  Qe6 {[%clk 0:01:09]} 31. Ne5 {[%clk 0:01:34]}  Nxe5 {[%clk 0:01:05]} 32. fxe5 {[%clk 0:01:33]}  Qc6 {[%clk 0:01:03]} 33. Qe2 {[%clk 0:01:27]}  Be6 {[%clk 0:01:02]} 34. Bb2 {[%clk 0:01:26]}  Qc7 {[%clk 0:00:59]} 35. Kg3 {[%clk 0:01:26]}  Kg7 {[%clk 0:00:56]} 36. Kf4 {[%clk 0:01:26]}  Kg8 {[%clk 0:00:55]} 37. h5 {[%clk 0:01:26]}  Qf7 {[%clk 0:00:50]} 38. Qf2 {[%clk 0:01:24]}  Qe7 {[%clk 0:00:42]} 39. Bxd4 {[%clk 0:01:23]}  Bxd4 {[%clk 0:00:40]} 40. Qxd4 {[%clk 0:01:24]}  h6 {[%clk 0:00:37]} 41. hxg6 {[%clk 0:00:48]}  Qxg5+ {[%clk 0:00:35]} 42. Kf3 {[%clk 0:00:48]}  Qxg6 {[%clk 0:00:34]} 43. Kf2 {[%clk 0:00:45]}  Qg5 {[%clk 0:00:27]} 44. Bxd5 {[%clk 0:00:44]}  Qd2+ {[%clk 0:00:25]} 45. Kf3 {[%clk 0:00:43]}  Qd1+ {[%clk 0:00:23]} 46. Kf2 {[%clk 0:00:36]}  Qd2+ {[%clk 0:00:21]} 47. Kg1 {[%clk 0:00:33]}  Qd1+ {[%clk 0:00:14]} 48. Kh2 {[%clk 0:00:33]}  Qxc2+ {[%clk 0:00:14]} 49. Kg3 {[%clk 0:00:33]}  Qc8 {[%clk 0:00:10]} 50. Kf4 {[%clk 0:00:26]}  Qe8 {[%clk 0:00:07]} 51. Bxe6+ {[%clk 0:00:24]}  Qxe6 {[%clk 0:00:07]} 52. Qd8+ {[%clk 0:00:21]}  Kh7 {[%clk 0:00:07]} 53. d4 {[%clk 0:00:21]}  Qg6 {[%clk 0:00:06]} 54. Qe7+ {[%clk 0:00:20]}  Kg8 {[%clk 0:00:06]} 55. Qd8+ {[%clk 0:00:20]}  Kf7 {[%clk 0:00:05]} 56. Qd7+ {[%clk 0:00:19]}  Kg8 {[%clk 0:00:05]} 57. Qxf5 {[%clk 0:00:20]}  Qg2 {[%clk 0:00:06]} 58. e6 {[%clk 0:00:19]}  Qf2+ {[%clk 0:00:06]} 59. Ke5 {[%clk 0:00:20]}  Qe3+ {[%clk 0:00:06]} 60. Kd5 {[%clk 0:00:20]}  Qb3+ {[%clk 0:00:05]} 61. Kd6 {[%clk 0:00:20]}  Qc4 {[%clk 0:00:03]} 62. d5 {[%clk 0:00:20]}  Qc8 {[%clk 0:00:03]} 63. Qf7+ {[%clk 0:00:21]}  Kh8 {[%clk 0:00:03]} 64. e7 {[%clk 0:00:21]}  Qb8+ {[%clk 0:00:03]} 65. Ke6 {[%clk 0:00:21]}  Qc8+ {[%clk 0:00:03]} 66. Kf6 {[%clk 0:00:21]}  Qc3+ {[%clk 0:00:03]} 67. Ke6 {[%clk 0:00:21]}  Qc8+ {[%clk 0:00:03]} 68. Kd6 {[%clk 0:00:22]}  Qb8+ {[%clk 0:00:03]} 69. Kc6 {[%clk 0:00:22]}  Qc8+ {[%clk 0:00:03]} 70. Kd6 {[%clk 0:00:22]} 1/2-1/2


[Site "https://www.chess.com"]

[Event "Titled Tuesday Blitz February 14 Early 2023"]
[White "Chor, Kevin"]
[Black "Pichot, Alan"]
[WhiteFideId "2090740"]
[BlackFideId "110973"]
[WhiteElo "1944"]
[BlackElo "2638"]
[Result "0-1"]
[Round "02"]
[TimeControl "180+2"]
[Date "2023.02.15"]
[WhiteClock "0:00:30"]
[BlackClock "0:00:40"]

1. e4 {[%clk 0:02:58]}  c6 {[%clk 0:02:54]} 2. d4 {[%clk 0:02:58]}  d5 {[%clk 0:02:52]} 3. exd5 {[%clk 0:02:59]}  cxd5 {[%clk 0:02:52]} 4. c4 {[%clk 0:03:00]}  Nf6 {[%clk 0:02:52]} 5. Nc3 {[%clk 0:03:01]}  g6 {[%clk 0:02:52]} 6. Qb3 {[%clk 0:02:57]}  Bg7 {[%clk 0:02:51]} 7. cxd5 {[%clk 0:02:57]}  O-O {[%clk 0:02:51]} 8. Nge2 {[%clk 0:02:56]}  Nbd7 {[%clk 0:02:47]} 9. g3 {[%clk 0:02:55]}  Nb6 {[%clk 0:02:40]} 10. Bg2 {[%clk 0:02:54]}  Bf5 {[%clk 0:02:29]} 11. Nf4 {[%clk 0:02:45]}  Qd7 {[%clk 0:02:27]} 12. O-O {[%clk 0:02:43]}  Rac8 {[%clk 0:02:25]} 13. h3 {[%clk 0:02:16]}  h5 {[%clk 0:02:21]} 14. Kh2 {[%clk 0:02:11]}  Rfd8 {[%clk 0:02:20]} 15. Be3 {[%clk 0:02:10]}  Nc4 {[%clk 0:02:19]} 16. Rad1 {[%clk 0:02:00]}  a6 {[%clk 0:02:19]} 17. Rfe1 {[%clk 0:01:59]}  b5 {[%clk 0:02:19]} 18. d6 {[%clk 0:01:56]}  Nxd6 {[%clk 0:02:16]} 19. Ncd5 {[%clk 0:01:51]}  Nc4 {[%clk 0:02:08]} 20. Nxf6+ {[%clk 0:01:44]}  Bxf6 {[%clk 0:02:09]} 21. Nd5 {[%clk 0:01:45]}  Nxe3 {[%clk 0:01:34]} 22. Qxe3 {[%clk 0:01:43]}  Qd6 {[%clk 0:01:17]} 23. Nxe7+ {[%clk 0:01:32]}  Qxe7 {[%clk 0:01:15]} 24. Qxe7 {[%clk 0:01:33]}  Bxe7 {[%clk 0:01:16]} 25. Rxe7 {[%clk 0:01:34]}  Rc2 {[%clk 0:01:17]} 26. d5 {[%clk 0:01:27]}  Rxf2 {[%clk 0:01:15]} 27. d6 {[%clk 0:01:23]}  Kf8 {[%clk 0:01:10]} 28. Kg1 {[%clk 0:01:04]}  Rxb2 {[%clk 0:01:09]} 29. Bd5 {[%clk 0:01:03]}  Rxd6 {[%clk 0:00:58]} 30. Rxf7+ {[%clk 0:01:03]}  Ke8 {[%clk 0:00:58]} 31. Ra7 {[%clk 0:01:00]}  Be6 {[%clk 0:00:49]} 32. Re1 {[%clk 0:00:57]}  Rxd5 {[%clk 0:00:49]} 33. Rxe6+ {[%clk 0:00:57]}  Kd8 {[%clk 0:00:49]} 34. Re1 {[%clk 0:00:43]}  Rxa2 {[%clk 0:00:49]} 35. Rf1 {[%clk 0:00:40]}  Rf5 {[%clk 0:00:46]} 36. Rd1+ {[%clk 0:00:40]}  Kc8 {[%clk 0:00:46]} 37. Rdd7 {[%clk 0:00:35]}  Rc5 {[%clk 0:00:44]} 38. Rd1 {[%clk 0:00:31]}  Rc7 {[%clk 0:00:44]} 39. Ra8+ {[%clk 0:00:30]}  Kb7 {[%clk 0:00:45]} 40. Rg8 {[%clk 0:00:31]}  b4 {[%clk 0:00:43]} 41. Rxg6 {[%clk 0:00:31]}  b3 {[%clk 0:00:43]} 42. Rb1 {[%clk 0:00:27]}  b2 {[%clk 0:00:43]} 43. Kg2 {[%clk 0:00:27]}  Rc1 {[%clk 0:00:43]} 44. Rg7+ {[%clk 0:00:28]}  Kc6 {[%clk 0:00:42]} 45. Rg6+ {[%clk 0:00:29]}  Kd7 {[%clk 0:00:42]} 46. Rg7+ {[%clk 0:00:29]}  Ke6 {[%clk 0:00:42]} 47. Rxb2 {[%clk 0:00:28]}  Rxb2+ {[%clk 0:00:42]} 48. Kf3 {[%clk 0:00:28]}  Rf1+ {[%clk 0:00:41]} 49. Ke3 {[%clk 0:00:28]}  a5 {[%clk 0:00:40]} 50. Rg5 {[%clk 0:00:28]}  Rf5 {[%clk 0:00:40]} 51. Rg6+ {[%clk 0:00:28]}  Kf7 {[%clk 0:00:40]} 52. Ra6 {[%clk 0:00:28]}  Rb3+ {[%clk 0:00:40]} 53. Ke4 {[%clk 0:00:29]}  Rg5 {[%clk 0:00:40]} 54. g4 {[%clk 0:00:29]}  hxg4 {[%clk 0:00:41]} 55. hxg4 {[%clk 0:00:30]}  Rxg4+ {[%clk 0:00:41]} 56. Kf5 {[%clk 0:00:30]}  Ra4 {[%clk 0:00:39]} 57. Ra7+ {[%clk 0:00:31]}  Ke8 {[%clk 0:00:40]} 58. Ke6 {[%clk 0:00:31]}  Re3+ {[%clk 0:00:39]} 59. Kd6 {[%clk 0:00:31]}  Ra1 {[%clk 0:00:39]} 60. Kc6 {[%clk 0:00:32]}  a4 {[%clk 0:00:39]} 61. Kb6 {[%clk 0:00:32]}  a3 {[%clk 0:00:40]} 62. Kb7 {[%clk 0:00:30]}  Re7+ {[%clk 0:00:39]} 63. Ka8 {[%clk 0:00:29]}  Rxa7+ {[%clk 0:00:40]} 64. Kb8 {[%clk 0:00:29]}  Ra4 {[%clk 0:00:39]} 65. Kb7 {[%clk 0:00:30]}  Rb4+ {[%clk 0:00:40]} 0-1


[Site "https://www.chess.com"]

[Event "Titled Tuesday Blitz February 14 Early 2023"]
[White "Kaidanov, Gregory"]
[Black "Boros, Denes"]
[WhiteFideId "2008564"]
[BlackFideId "722340"]
[WhiteElo "2559"]
[BlackElo "2406"]
[Result "0-1"]
[Round "02"]
[TimeControl "180+2"]
[Date "2023.02.15"]
[WhiteClock "0:00:01"]
[BlackClock "0:00:22"]

1. Nf3 {[%clk 0:03:00]}  f5 {[%clk 0:02:58]} 2. g3 {[%clk 0:02:59]}  Nf6 {[%clk 0:02:58]} 3. Bg2 {[%clk 0:03:00]}  Nc6 {[%clk 0:02:58]} 4. d4 {[%clk 0:03:00]}  e6 {[%clk 0:02:57]} 5. c4 {[%clk 0:03:00]}  Bb4+ {[%clk 0:02:57]} 6. Nbd2 {[%clk 0:02:57]}  O-O {[%clk 0:02:52]} 7. O-O {[%clk 0:02:56]}  b6 {[%clk 0:02:49]} 8. d5 {[%clk 0:02:50]}  Na5 {[%clk 0:02:44]} 9. a3 {[%clk 0:02:36]}  Bxd2 {[%clk 0:02:44]} 10. Nxd2 {[%clk 0:02:36]}  Rb8 {[%clk 0:02:26]} 11. b4 {[%clk 0:02:36]}  Nb7 {[%clk 0:02:26]} 12. Bb2 {[%clk 0:02:36]}  Nd6 {[%clk 0:02:23]} 13. Qb3 {[%clk 0:02:34]}  Re8 {[%clk 0:02:19]} 14. dxe6 {[%clk 0:02:29]}  dxe6 {[%clk 0:02:18]} 15. Rfd1 {[%clk 0:02:29]}  Qe7 {[%clk 0:02:16]} 16. Nf3 {[%clk 0:02:18]}  Bb7 {[%clk 0:02:12]} 17. Qc2 {[%clk 0:02:07]}  Be4 {[%clk 0:02:10]} 18. Qc3 {[%clk 0:02:07]}  c5 {[%clk 0:02:07]} 19. b5 {[%clk 0:02:04]}  Nf7 {[%clk 0:01:58]} 20. a4 {[%clk 0:02:02]}  a5 {[%clk 0:01:47]} 21. bxa6 {[%clk 0:01:56]}  Ra8 {[%clk 0:01:47]} 22. a5 {[%clk 0:01:56]}  Rxa6 {[%clk 0:01:47]} 23. axb6 {[%clk 0:01:56]}  Rxb6 {[%clk 0:01:48]} 24. Ba3 {[%clk 0:01:54]}  Rc8 {[%clk 0:01:42]} 25. Bf1 {[%clk 0:01:35]}  Qb7 {[%clk 0:01:38]} 26. Nd2 {[%clk 0:01:31]}  h5 {[%clk 0:01:25]} 27. f3 {[%clk 0:01:31]}  Bc6 {[%clk 0:01:25]} 28. Bxc5 {[%clk 0:01:30]}  Ra6 {[%clk 0:01:25]} 29. Bd4 {[%clk 0:01:25]}  Rxa1 {[%clk 0:01:20]} 30. Rxa1 {[%clk 0:01:25]}  Ne8 {[%clk 0:01:10]} 31. Ra7 {[%clk 0:01:24]}  Qb8 {[%clk 0:01:11]} 32. Qe3 {[%clk 0:01:10]}  Rd8 {[%clk 0:01:11]} 33. Qxe6 {[%clk 0:01:05]}  Bb7 {[%clk 0:00:52]} 34. Qb6 {[%clk 0:00:57]}  Rd6 {[%clk 0:00:41]} 35. Qxb7 {[%clk 0:00:50]}  Qxb7 {[%clk 0:00:42]} 36. Rxb7 {[%clk 0:00:50]}  Rxd4 {[%clk 0:00:42]} 37. Rb2 {[%clk 0:00:49]}  Ne5 {[%clk 0:00:37]} 38. Rc2 {[%clk 0:00:42]}  Nc7 {[%clk 0:00:35]} 39. Kf2 {[%clk 0:00:39]}  h4 {[%clk 0:00:35]} 40. e3 {[%clk 0:00:37]}  Rd6 {[%clk 0:00:35]} 41. c5 {[%clk 0:00:30]}  hxg3+ {[%clk 0:00:36]} 42. hxg3 {[%clk 0:00:29]}  Rh6 {[%clk 0:00:36]} 43. Kg2 {[%clk 0:00:26]}  Kf8 {[%clk 0:00:35]} 44. Nc4 {[%clk 0:00:26]}  Nd5 {[%clk 0:00:35]} 45. Kf2 {[%clk 0:00:14]}  Rh2+ {[%clk 0:00:32]} 46. Bg2 {[%clk 0:00:09]}  Nxc4 {[%clk 0:00:32]} 47. Kg1 {[%clk 0:00:06]}  Ncxe3 {[%clk 0:00:27]} 48. Re2 {[%clk 0:00:02]}  Rh6 {[%clk 0:00:22]} 49. f4 {[%clk 0:00:01]}  Ra6 {[%clk 0:00:22]} 0-1


[Site "https://www.chess.com"]